bitfinex-derivatives/quotes_ETHF0:USTF0_20241017
["timestamp","ask_amount","ask_price","bid_price","bid_amount"]
[1729141978962,0.77345,2633.7,2633.6,1.60975]
[1729141979266,0.77345,2633.7,2633.6,4.81755]
[1729141979966,0.77345,2633.7,2633.6,1.60975]
[1729141980166,0.77345,2633.7,2633.6,4.81755]
[1729141980662,0.77345,2633.7,2633.6,1.60975]
[1729141980868,2.00345,2633.7,2633.6,3.2078]
[1729141981367,2.00345,2633.7,2633.6,3.58756]
[1729141982765,2.00345,2633.7,2633.6,3.2078]
[1729141982966,2.00345,2633.7,2633.6,3.58756]
[1729141983266,2.00345,2633.7,2633.6,3.2078]
[1729141983762,2.00345,2633.7,2633.6,3.58756]
[1729141987872,2.00345,2633.7,2633.6,3.2078]
[1729141988062,2.00345,2633.7,2633.6,3.58756]
[1729141989064,2.00345,2633.7,2633.6,3.2078]
[1729141989470,2.00345,2633.7,2633.6,3.58756]
[1729141989667,2.00345,2633.7,2633.6,4.58239453]
[1729141991162,2.00345,2633.7,2633.6,3.58756]
[1729141991566,2.00345,2633.7,2633.6,4.58239453]
[1729141991770,2.00345,2633.7,2633.6,3.58756]
[1729141992164,2.00345,2633.7,2633.6,4.58239453]
[1729141992363,0.77345,2633.7,2633.6,3.2078]
[1729141992568,0.77345,2633.7,2633.6,4.58239453]
[1729141993166,0.77345,2633.7,2633.6,3.58756]
[1729141993361,0.77345,2633.7,2633.6,4.58239453]
[1729141994773,0.77345,2633.7,2633.6,3.58756]
[1729141997771,0.77345,2633.7,2633.6,4.58239453]
[1729141998361,0.3937,2633.7,2633.6,4.58239453]
[1729141998565,2.17912,2634.4,2633.6,15.28172552]
[1729141998771,0.37968,2634.2,2634.1,0.37969]
[1729141999277,0.37968,2634.2,2634.1,0.4243]
[1729141999572,1.60968,2634.2,2634.1,0.4243]
[1729142000283,1.60968,2634.2,2634.1,0.80399]
[1729142000669,0.37967,2634.3,2634.2,0.37966]
[1729142000870,0.37967,2634.2,2634.1,0.80398]
[1729142001778,0.37967,2634.2,2634.1,1.79968354]
[1729142001972,0.37967,2634.2,2634.1,3.12730303]
[1729142002370,0.37967,2634.2,2634.1,2.13162763]
[1729142002576,0.37967,2634.2,2634.1,3.12731016]
[1729142003075,1.60967,2634.2,2634.1,3.12728594]
[1729142004776,1.60967,2634.2,2634.1,2.32329594]
[1729142004975,1.60967,2634.2,2634.1,0.99568253]
[1729142008077,1.60967,2634.2,2634.1,1.38638253]
[1729142009782,1.60967,2634.2,2634.1,0.99568253]
[1729142013482,0.37969,2634.1,2634.0,0.99568253]
[1729142013684,0.79989,2634.1,2634.0,2.32265467]
[1729142016882,2.02989,2634.1,2634.0,2.32265467]
[1729142017080,0.3797,2634.0,2633.9,3.5985]
[1729142018882,0.37972,2633.9,2633.7,0.99568253]
[1729142019090,0.37975,2633.7,2633.6,4.60548253]
[1729142019282,0.37975,2633.7,2633.6,3.6098]
[1729142019283,1.60975,2633.7,2633.6,3.6098]
[1729142022882,1.6218,2633.8,2633.6,4.8398]
[1729142023084,0.37974,2633.8,2633.7,1.60973]
[1729142023592,0.3853,2634.1,2633.7,1.23]
[1729142023787,0.37973,2633.9,2633.8,0.37972]
[1729142023990,0.37973,2633.9,2633.8,3.2000295]
[1729142024287,0.37973,2633.9,2633.8,4.4300295]
[1729142029497,0.37973,2633.9,2633.8,4.43017905]
[1729142030590,0.37973,2633.9,2633.8,4.43023251]
[1729142031997,0.37973,2633.9,2633.8,1.60972]
[1729142034997,0.37973,2633.9,2633.8,1.23]
[1729142035597,0.37973,2633.9,2633.8,1.60973]
[1729142036604,0.37973,2633.9,2633.8,2.60501829]
[1729142036906,0.37973,2633.9,2633.8,1.23]
[1729142037101,0.37972,2634.0,2633.9,0.37971]
[1729142037306,0.37972,2634.0,2633.9,4.39221]
[1729142037700,0.8171,2634.3,2633.9,6.23778829]
[1729142037998,0.4162,2634.4,2634.2,2.22528829]
[1729142038202,0.8262,2634.7,2634.3,3.00578829]
[1729142038504,1.60957,2634.9,2634.6,1.23]
[1729142038705,1.60959,2634.8,2634.7,0.3939]
[1729142038899,1.60958,2634.9,2634.7,2.0035]
[1729142039099,1.23,2634.9,2634.7,2.61918829]
[1729142039304,1.60958,2634.9,2634.8,2.22528829]
[1729142039609,1.60958,2634.9,2634.7,2.99877829]
[1729142039911,1.23,2634.8,2634.7,2.99878829]
[1729142040202,1.23,2634.8,2634.7,4.32508825]
[1729142041611,1.23,2634.8,2634.7,2.99878829]
[1729142041813,1.60959,2634.8,2634.7,2.99878829]
[1729142042203,1.23,2634.8,2634.7,2.99878829]
[1729142042601,1.60959,2634.8,2634.7,0.99528829]
[1729142042910,0.3796,2634.7,2634.6,0.99528829]
[1729142043097,2.4161,2634.7,2634.6,0.99528829]
[1729142043302,2.0365,2634.7,2634.5,1.39698829]
[1729142043504,1.23,2634.6,2634.4,5.10595531]
[1729142043810,1.60963,2634.5,2634.4,4.2019435]
[1729142044013,1.60963,2634.5,2634.4,3.2078]
[1729142044809,1.60963,2634.5,2634.4,3.58745]
[1729142045314,0.37963,2634.5,2634.4,5.8115935]
[1729142045523,0.3982,2634.8,2634.4,6.75743624]
[1729142045707,2.0078,2634.8,2634.7,3.2078]
[1729142046213,2.0078,2634.8,2634.7,3.5874]
[1729142048405,2.0078,2634.8,2634.7,0.3796]
[1729142048611,2.0078,2634.8,2634.7,3.5874]
[1729142053212,0.3982,2634.8,2634.7,4.8174]
[1729142053514,1.60957,2635.0,2634.9,0.37956]
[1729142053716,2.02757,2635.0,2634.9,0.37956]
[1729142055010,0.418,2635.0,2634.9,1.60956]
[1729142055205,3.2078,2635.3,2634.9,1.60956]
[1729142055206,3.2078,2635.3,2635.2,0.37953]
[1729142055412,4.8558,2635.3,2635.1,1.23]
[1729142055711,5.62723,2635.3,2635.2,0.37953]
[1729142056111,4.0177,2635.3,2635.2,0.37953]
[1729142056313,4.0177,2635.3,2635.2,1.60953]
[1729142056509,3.6258,2635.3,2635.2,1.60953]
[1729142057213,0.418,2635.3,2635.2,1.60953]
[1729142058615,1.23,2635.4,2635.3,0.37952]
[1729142059210,3.2078,2636.4,2635.3,14.2322]
[1729142059414,1.6094,2636.2,2636.1,0.37939]
[1729142059723,1.23,2636.2,2635.9,1.6441]
[1729142059913,1.60941,2636.1,2636.0,0.37941]
[1729142060524,0.37941,2636.0,2635.9,2.02352]
[1729142060820,1.60941,2636.1,2635.9,1.6441]
[1729142061010,1.60941,2636.1,2635.9,2.02352]
[1729142061410,1.60941,2636.1,2635.9,1.6441]
[1729142061618,1.60941,2636.1,2636.0,0.37941]
[1729142061919,1.23,2636.1,2636.0,0.37941]
[1729142062118,1.6094,2636.1,2635.9,1.6441]
[1729142062421,1.6094,2636.1,2636.0,0.37941]
[1729142062612,1.23,2636.3,2636.0,4.4378]
[1729142062809,1.60938,2636.3,2636.2,0.37939]
[1729142063015,1.23,2636.3,2636.2,0.37939]
[1729142063211,2.40306,2636.4,2636.2,1.60938]
[1729142063611,2.0237,2636.4,2636.2,1.60938]
[1729142063811,0.37937,2636.3,2636.2,1.23]
[1729142064016,0.37939,2636.2,2636.1,1.60939]
[1729142064216,1.60938,2636.3,2636.1,1.60939]
[1729142064721,1.23,2636.3,2636.2,0.37939]
[1729142065028,1.23,2636.3,2636.1,1.23]
[1729142065223,1.60938,2636.3,2636.1,1.60939]
[1729142065422,0.7937,2636.4,2636.2,1.23]
[1729142065717,0.7937,2636.4,2636.0,3.2078]
[1729142065718,0.395,2636.4,2636.3,4.81717]
[1729142066520,1.625,2636.4,2636.2,1.23]
[1729142066715,1.625,2636.4,2636.3,0.37937]
[1729142066920,2.00436,2636.4,2636.3,0.37937]
[1729142067222,1.625,2636.4,2636.3,3.58717]
[1729142067422,2.00436,2636.4,2636.3,3.58717]
[1729142067627,1.625,2636.4,2636.3,3.58717]
[1729142067817,2.00436,2636.4,2636.3,3.2078]
[1729142070224,2.00436,2636.4,2636.3,3.58717]
[1729142070626,2.00436,2636.4,2636.3,3.2078]
[1729142071221,0.395,2636.4,2636.3,4.81717]
[1729142071423,1.23,2636.5,2636.4,0.37936]
[1729142071719,1.60934,2636.5,2636.4,0.79926]
[1729142071916,0.37934,2636.6,2636.4,2.02925]
[1729142072127,2.00672,2636.7,2636.5,0.37934]
[1729142072422,0.37934,2636.6,2636.4,2.82435]
[1729142072622,0.37934,2636.6,2636.5,0.37934]
[1729142072820,40.8,2636.8,2636.5,1.23]
[1729142073028,1.60932,2636.7,2636.6,0.37932]
[1729142074323,0.37933,2636.6,2636.5,1.60933]
[1729142075025,1.23,2636.7,2636.5,1.23]
[1729142075333,1.23,2636.7,2636.6,0.37933]
[1729142075627,0.37931,2636.7,2636.6,4.81712]
[1729142075925,1.23,2636.8,2636.6,3.2078]
[1729142076126,1.60931,2636.8,2636.7,0.3793]
[1729142076324,1.60931,2636.8,2636.6,4.4378]
[1729142076325,1.23,2636.8,2636.6,4.4378]
[1729142076521,1.60931,2636.8,2636.7,0.37931]
[1729142077230,0.3793,2636.8,2636.7,0.3793]
[1729142079333,3.9796416,2639.1,2636.7,0.3793]
[1729142079334,1.23,2637.4,2636.7,12.2528]
[1729142079529,1.23,2637.0,2636.9,4.4378]
[1729142079729,1.60927,2637.0,2636.9,3.2078]
[1729142080234,1.60927,2637.0,2636.9,4.4378]
[1729142080426,1.23,2637.0,2636.9,3.2078]
[1729142080830,1.60927,2637.0,2636.9,3.2078]
[1729142081532,1.60927,2637.0,2636.9,4.4378]
[1729142082124,1.60927,2637.0,2636.9,3.2078]
[1729142083530,1.60927,2637.0,2636.9,4.81709]
[1729142083531,0.37927,2637.0,2636.9,4.81709]
[1729142085031,1.60927,2637.0,2636.9,4.81709]
[1729142085537,0.37927,2637.0,2636.9,4.81709]
[1729142085932,0.37927,2637.0,2636.9,1.60929]
[1729142086129,0.37927,2637.0,2636.9,4.81709]
[1729142086330,0.387,2637.1,2636.9,4.4378]
[1729142086634,0.76627,2637.1,2637.0,0.37927]
[1729142087023,0.37927,2637.0,2636.9,4.81707]
[1729142087636,0.76627,2637.1,2636.9,4.81707]
[1729142087834,0.76627,2637.1,2636.9,1.60927]
[1729142088034,0.37927,2637.0,2636.9,4.81707]
[1729142088238,0.387,2637.1,2636.9,4.4378]
[1729142088533,0.37927,2637.0,2636.9,4.81709]
[1729142089241,1.99627,2637.1,2637.0,0.37927]
[1729142090538,0.37927,2637.0,2636.9,4.81707]
[1729142091036,0.387,2637.1,2636.9,4.4378]
[1729142091233,0.387,2637.1,2637.0,1.60927]
[1729142093348,2.39383,2637.3,2637.2,0.37924]
[1729142093534,2.81713,2637.3,2637.1,0.79274]
[1729142093840,2.81713,2637.3,2637.1,0.4135]
[1729142094135,2.4379,2637.3,2637.1,0.79275]
[1729142094443,1.23,2637.2,2637.1,0.79275]
[1729142095034,1.60924,2637.2,2637.1,0.37925]
[1729142096143,1.23,2637.2,2637.1,0.37925]
[1729142096349,1.60924,2637.2,2637.1,0.37925]
[1729142096845,1.23,2637.2,2637.1,0.37925]
[1729142097040,1.60924,2637.2,2637.1,0.37925]
[1729142099345,1.60925,2637.2,2637.1,0.37926]
[1729142101145,0.37926,2637.1,2637.0,1.60926]
[1729142101339,1.23,2637.2,2637.0,1.23]
[1729142101547,1.60926,2637.2,2637.1,0.37926]
[1729142101844,1.60925,2637.2,2637.1,0.37926]
[1729142103343,0.37925,2637.2,2637.1,0.37926]
[1729142104749,0.37926,2637.1,2637.0,1.60926]
[1729142105251,1.23,2637.2,2636.9,4.8513]
[1729142105452,1.23,2637.2,2636.9,5.84532673]
[1729142105749,0.37925,2637.2,2637.1,0.37926]
[1729142106156,0.37926,2637.1,2637.0,1.60926]
[1729142106849,2.4379,2637.3,2637.0,1.23]
[1729142107049,0.37926,2637.1,2637.0,1.60926]
[1729142107752,0.37927,2637.0,2636.9,5.23058]
[1729142107950,0.77237,2637.0,2636.9,5.23058]
[1729142108154,1.6231,2637.0,2636.7,1.23]
[1729142108454,0.37931,2636.8,2636.7,1.60931]
[1729142108954,2.4312,2636.9,2636.8,0.3793]
[1729142109155,0.3793,2636.8,2636.7,1.6093]
[1729142109358,2.4312,2636.9,2636.8,0.3793]
[1729142109655,0.3793,2636.8,2636.7,4.8171]
[1729142109852,0.3793,2636.8,2636.7,4.4378]
[1729142110653,1.6093,2636.8,2636.7,4.4378]
[1729142113552,1.6093,2636.8,2636.7,1.23]
[1729142118455,0.37931,2636.7,2636.6,1.60933]
[1729142118659,0.79881,2636.7,2636.6,1.60933]
[1729142118856,0.79881,2636.7,2636.6,1.23]
[1729142119472,0.79881,2636.7,2636.6,1.60933]
[1729142119666,0.79881,2636.7,2636.6,1.636]
[1729142119959,0.79881,2636.7,2636.6,2.01533]
[1729142120857,0.79881,2636.7,2636.6,3.00935673]
[1729142121164,0.79881,2636.7,2636.6,2.01533]
[1729142121746,0.79881,2636.7,2636.6,1.636]
[1729142121951,0.79881,2636.7,2636.6,2.01533]
[1729142122557,0.79881,2636.7,2636.6,1.636]
[1729142122761,5.4423,2636.7,2636.2,0.99402673]
[1729142122953,5.4423,2636.7,2636.1,5.93135531]
[1729142122954,0.37939,2636.2,2636.1,5.2695]
[1729142123149,1.60939,2636.2,2636.1,5.2695]
[1729142123363,1.6395,2636.2,2636.0,0.4245]
[1729142123660,1.6094,2636.1,2636.0,1.6545]
[1729142123858,1.6094,2636.1,2636.0,0.4245]
[1729142124057,1.6094,2636.1,2636.0,1.6545]
[1729142124357,0.4095,2636.2,2636.1,0.3794]
[1729142124660,0.37938,2636.3,2636.1,1.23]
[1729142124859,0.37938,2636.3,2636.2,1.6481]
[1729142125363,1.6395,2636.4,2636.2,1.6481]
[1729142125364,0.4095,2636.4,2636.2,1.6481]
[1729142125565,3.2078,2636.5,2636.3,1.23]
[1729142125763,3.58715,2636.5,2636.4,1.23]
[1729142126056,3.58715,2636.5,2636.4,1.60936]
[1729142126057,0.37935,2636.5,2636.4,1.60936]
[1729142126457,0.37934,2636.5,2636.4,1.60935]
[1729142127358,0.37934,2636.5,2636.4,1.60936]
[1729142128273,0.37934,2636.5,2636.4,1.23]
[1729142128458,0.37936,2636.4,2636.3,0.79297]
[1729142128657,2.01886,2636.4,2636.3,0.79297]
[1729142129459,2.01886,2636.4,2636.3,0.4136]
[1729142131661,2.01886,2636.4,2636.3,0.79297]
[1729142131965,2.01886,2636.4,2636.3,0.4136]
[1729142132361,2.01886,2636.4,2636.3,0.79297]
[1729142133558,2.01886,2636.4,2636.3,0.4136]
[1729142134066,2.01886,2636.4,2636.3,0.79297]
[1729142134257,2.01886,2636.4,2636.3,0.4136]
[1729142135066,5.4323,2636.4,2636.0,0.4245]
[1729142135264,1.6094,2636.1,2636.0,2.0709]
[1729142135465,1.6094,2636.1,2636.0,2.45031]
[1729142135864,1.6094,2636.1,2636.0,2.0709]
[1729142136164,1.23,2636.1,2635.8,4.60032673]
[1729142136366,0.3794,2636.1,2636.0,1.6094]
[1729142136961,5.79122,2636.4,2636.1,0.37939]
[1729142136962,0.3794,2636.2,2636.1,0.37939]
[1729142137161,0.3794,2636.2,2636.1,1.60939]
[1729142141766,0.3794,2636.2,2636.1,1.23]
[1729142141960,0.3794,2636.2,2636.1,1.6094]
[1729142143470,0.3794,2636.2,2636.1,1.23]
[1729142143771,0.3794,2636.2,2636.1,1.6094]
[1729142144065,0.3794,2636.2,2636.1,1.23]
[1729142144470,0.3794,2636.2,2636.1,1.6094]
[1729142145474,0.3794,2636.2,2636.1,1.23]
[1729142145764,0.3794,2636.2,2636.1,1.6094]
[1729142145964,0.3794,2636.2,2636.1,1.23]
[1729142146165,0.3794,2636.2,2636.1,1.6094]
[1729142148775,0.3794,2636.2,2636.1,1.23]
[1729142150275,0.3794,2636.2,2636.1,1.6094]
[1729142152273,0.3794,2636.2,2636.1,1.23]
[1729142152474,0.3794,2636.2,2636.1,1.6094]
[1729142152872,0.3794,2636.2,2636.1,0.3794]
[1729142153571,1.6142,2636.3,2636.0,2.64362673]
[1729142153769,0.3794,2636.1,2636.0,3.02302673]
[1729142155076,1.6094,2636.1,2636.0,3.02302673]
[1729142156279,1.6094,2636.1,2636.0,4.34735872]
[1729142157177,1.6094,2636.1,2636.0,4.34740726]
[1729142157372,1.6094,2636.1,2636.0,3.02302673]
[1729142157780,1.6094,2636.1,2636.0,4.34753357]
[1729142158780,1.6094,2636.1,2636.0,4.34727288]
[1729142159271,1.6094,2636.1,2636.0,4.34727685]
[1729142159968,1.6094,2636.1,2636.0,2.029]
[1729142160373,1.6142,2636.3,2636.0,2.64337001]
[1729142160573,0.3794,2636.2,2636.1,0.37939]
[1729142161576,1.23,2636.2,2636.0,0.4196]
[1729142161775,0.7958,2636.1,2636.0,0.799]
[1729142162684,0.7958,2636.1,2636.0,1.79277001]
[1729142163179,0.7958,2636.1,2636.0,0.799]
[1729142163483,0.7958,2636.1,2636.0,1.79277001]
[1729142164580,0.4164,2636.1,2636.0,3.02277001]
[1729142164878,4.15612,2636.7,2636.3,0.37937]
[1729142165082,0.3896,2636.5,2636.4,0.37936]
[1729142165273,1.6196,2636.5,2636.4,0.78706]
[1729142165780,1.23,2636.5,2636.4,1.781273]
[1729142165980,1.60936,2636.5,2636.4,0.994213]
[1729142166182,1.60936,2636.5,2636.3,1.373573]
[1729142166183,0.37936,2636.4,2636.3,1.373573]
[1729142166379,2.40266,2636.4,2636.3,2.69907647]
[1729142166588,0.7933,2636.4,2636.3,3.92929494]
[1729142166780,0.7933,2636.4,2636.3,4.81238297]
[1729142166980,1.60935,2636.5,2636.4,0.37936]
[1729142167184,0.3921,2636.6,2636.4,2.55550347]
[1729142167487,0.3921,2636.6,2636.5,4.81714]
[1729142168481,0.3921,2636.6,2636.5,11.27235459]
[1729142169279,0.3921,2636.6,2636.5,8.78640796]
[1729142169988,0.3921,2636.6,2636.5,11.27235459]
[1729142170383,0.3921,2636.6,2636.5,8.78640796]
[1729142170785,0.3921,2636.6,2636.5,7.55640796]
[1729142171289,0.3921,2636.6,2636.5,9.54336116]
[1729142172399,0.3921,2636.6,2636.5,6.89718252]
[1729142173287,0.3921,2636.6,2636.5,8.12718252]
[1729142174083,0.3921,2636.6,2636.5,5.81030897]
[1729142174283,0.3921,2636.6,2636.5,2.60250897]
[1729142174484,0.3921,2636.6,2636.5,5.81030897]
[1729142174684,1.23,2636.7,2636.6,0.37933]
[1729142174885,1.60931,2636.7,2636.6,0.37933]
[1729142175089,2.03461,2636.7,2636.6,0.37933]
[1729142175592,1.6553,2636.7,2636.6,0.37933]
[1729142175790,1.6553,2636.7,2636.6,3.58713]
[1729142176391,0.7924,2637.1,2636.6,4.4378]
[1729142176596,1.60929,2636.9,2636.8,0.37929]
[1729142176800,1.60929,2636.9,2636.8,0.78499]
[1729142177093,1.60929,2636.9,2636.8,0.4057]
[1729142178196,1.60929,2636.9,2636.8,0.785]
[1729142180196,0.4253,2637.0,2636.8,0.4057]
[1729142180389,0.4253,2637.0,2636.9,0.76319]
[1729142180790,0.4253,2637.0,2636.9,1.99319]
[1729142180999,1.6553,2637.0,2636.9,1.99319]
[1729142181703,2.03457,2637.0,2636.9,1.99319]
[1729142181890,2.03457,2637.0,2636.9,0.76319]
[1729142182088,0.4253,2637.0,2636.9,0.76319]
[1729142182391,0.37929,2636.9,2636.8,0.78499]
[1729142182701,1.60929,2636.9,2636.8,0.78499]
[1729142184402,0.37929,2636.9,2636.8,0.78499]
[1729142186402,2.03457,2637.0,2636.9,0.37929]
[1729142186594,2.03457,2637.0,2636.9,0.80209]
[1729142187201,0.4253,2637.0,2636.9,0.80209]
[1729142187391,2.03457,2637.0,2636.9,0.80209]
[1729142188699,1.6553,2637.0,2636.8,0.4057]
[1729142188900,0.3793,2636.8,2636.7,0.7952]
[1729142189104,2.43389,2636.9,2636.8,0.3793]
[1729142189604,0.79909,2636.9,2636.8,1.6093]
[1729142189805,1.6553,2637.0,2636.8,1.23]
[1729142190009,2.03458,2637.0,2636.9,0.76419]
[1729142190509,2.03458,2637.0,2636.9,0.3849]
[1729142190712,2.03458,2637.0,2636.9,0.76419]
[1729142194508,2.03458,2637.0,2636.9,0.3849]
[1729142195013,2.03458,2637.0,2636.9,0.76419]
[1729142195403,1.6553,2637.0,2636.6,4.58786897]
[1729142195607,1.6553,2637.0,2636.6,3.5947]
[1729142195608,1.60931,2636.7,2636.6,3.5947]
[1729142195911,1.60931,2636.7,2636.6,3.97403]
[1729142196300,1.60931,2636.7,2636.6,3.5947]
[1729142196614,1.60931,2636.7,2636.6,3.97403]
[1729142200514,1.60931,2636.7,2636.6,3.5947]
[1729142200906,1.60931,2636.7,2636.6,3.97403]
[1729142201912,1.6093,2636.9,2636.8,0.3793]
[1729142202813,0.3793,2636.9,2636.8,0.3793]
[1729142203211,0.3793,2636.9,2636.8,0.7726]
[1729142203408,1.6093,2636.9,2636.8,0.7726]
[1729142204216,1.6093,2636.9,2636.8,1.76576897]
[1729142204915,1.23,2636.9,2636.8,1.76576897]
[1729142205311,1.23,2636.9,2636.8,3.08521468]
[1729142206410,1.23,2636.9,2636.8,1.76576897]
[1729142206916,1.60929,2636.9,2636.8,4.97356897]
[1729142207117,1.23,2636.9,2636.8,4.97356897]
[1729142207320,1.23,2636.9,2636.8,6.29329367]
[1729142207621,1.23,2636.9,2636.8,6.78987815]
[1729142207810,0.37928,2637.0,2636.9,0.37929]
[1729142208011,1.60928,2637.0,2636.9,1.77419227]
[1729142209823,1.60928,2637.0,2636.9,3.09460951]
[1729142210128,1.23,2637.0,2636.9,1.77419227]
[1729142210419,1.23,2637.0,2636.9,3.59188039]
[1729142210923,1.60927,2637.1,2637.0,0.37927]
[1729142211223,1.60927,2637.1,2637.0,2.12390694]
[1729142211421,1.60927,2637.1,2637.0,3.11719196]
[1729142211624,1.60927,2637.1,2637.0,2.12390694]
[1729142212120,1.60927,2637.1,2637.0,3.61366039]
[1729142212311,1.60926,2637.1,2637.0,0.80357]
[1729142218928,1.60926,2637.1,2636.9,2.62574612]
[1729142218929,1.23,2637.1,2636.9,1.39574612]
[1729142219125,0.37929,2636.9,2636.8,4.20104612]
[1729142219327,1.60929,2636.9,2636.8,4.20104612]
[1729142219527,2.42599,2636.9,2636.8,4.20104612]
[1729142219830,2.42599,2636.9,2636.8,3.2078]
[1729142222039,2.0467,2636.9,2636.7,0.99324612]
[1729142222338,1.6093,2636.8,2636.7,0.99324612]
[1729142222535,1.6093,2636.8,2636.7,2.31444928]
[1729142222938,1.6093,2636.8,2636.7,0.99324612]
[1729142223737,0.3793,2636.8,2636.7,2.69373478]
[1729142223935,0.77259,2636.9,2636.8,0.3793]
[1729142224139,0.3933,2636.9,2636.8,3.18996412]
[1729142224344,0.3933,2636.9,2636.8,3.60906412]
[1729142224538,0.3933,2636.9,2636.8,2.11931067]
[1729142225443,0.77259,2636.9,2636.8,3.60917717]
[1729142225636,2.00259,2636.9,2636.8,1.74001067]
[1729142225837,2.00259,2636.9,2636.8,3.60919434]
[1729142226934,2.00259,2636.9,2636.8,3.60920052]
[1729142227134,1.6233,2636.9,2636.8,3.60920052]
[1729142227334,1.6233,2636.9,2636.8,2.11931685]
[1729142227936,1.6233,2636.9,2636.8,3.60923805]
[1729142228239,2.00259,2636.9,2636.8,3.60923805]
[1729142228841,1.6233,2636.9,2636.8,2.11931685]
[1729142229037,1.6233,2636.9,2636.8,3.60929458]
[1729142229347,2.00259,2636.9,2636.8,2.11931685]
[1729142229534,2.00259,2636.9,2636.8,3.60909318]
[1729142230241,2.00259,2636.9,2636.8,2.81069318]
[1729142230647,2.00259,2636.9,2636.8,3.18999318]
[1729142230846,2.00259,2636.9,2636.8,2.81069318]
[1729142231643,2.00259,2636.9,2636.8,3.18999318]
[1729142231839,2.00259,2636.9,2636.8,3.18948632]
[1729142232346,2.00259,2636.9,2636.8,2.81018632]
[1729142233146,2.00259,2636.9,2636.8,1.32040999]
[1729142233547,2.00259,2636.9,2636.8,2.81018632]
[1729142233843,2.00259,2636.9,2636.8,2.31340948]
[1729142234051,2.00259,2636.9,2636.8,2.81018632]
[1729142234341,1.6233,2636.9,2636.7,2.17257741]
[1729142234542,0.37931,2636.7,2636.6,1.76048741]
[1729142234738,0.37931,2636.7,2636.6,2.57998741]
[1729142234939,2.0477,2636.9,2636.6,2.20066741]
[1729142235146,1.60931,2636.8,2636.7,1.37227741]
[1729142235552,1.60931,2636.8,2636.7,0.37931]
[1729142235950,1.60931,2636.8,2636.7,1.37227741]
[1729142236949,0.37931,2636.8,2636.7,1.37227741]
[1729142237153,1.197,2636.9,2636.7,1.23]
[1729142237343,0.7726,2636.9,2636.8,0.3793]
[1729142242352,0.3793,2636.8,2636.7,2.60226741]
[1729142242553,1.6093,2636.8,2636.7,1.37226741]
[1729142242759,1.6093,2636.8,2636.7,0.3793]
[1729142243664,1.6093,2636.8,2636.7,1.37226741]
[1729142243851,1.6093,2636.8,2636.7,0.3793]
[1729142244058,1.6093,2636.8,2636.7,1.37226741]
[1729142246654,1.23,2636.8,2636.7,1.37226741]
[1729142246858,1.6093,2636.8,2636.7,1.37226741]
[1729142247761,0.3793,2636.8,2636.7,2.69301742]
[1729142247956,0.3793,2636.8,2636.7,1.70005001]
[1729142248156,0.3793,2636.8,2636.7,2.69324097]
[1729142249653,0.3793,2636.8,2636.7,6.89480321]
[1729142249853,0.3793,2636.8,2636.7,3.68700321]
[1729142250256,0.3793,2636.8,2636.7,6.89480321]
[1729142251259,0.7726,2636.9,2636.8,0.3793]
[1729142251469,0.7726,2636.9,2636.8,3.18890073]
[1729142251658,0.7726,2636.9,2636.8,2.80960073]
[1729142252067,2.0026,2636.9,2636.8,2.80960073]
[1729142252366,2.0026,2636.9,2636.8,3.18890073]
[1729142254769,2.0026,2636.9,2636.8,2.80960073]
[1729142256366,2.0026,2636.9,2636.8,3.18890073]
[1729142256566,2.0026,2636.9,2636.8,2.80960073]
[1729142258972,2.0026,2636.9,2636.8,3.18890073]
[1729142259671,2.0026,2636.9,2636.8,2.80960073]
[1729142259873,2.0026,2636.9,2636.8,1.6996015]
[1729142260374,2.0026,2636.9,2636.8,3.18890073]
[1729142260972,2.0026,2636.9,2636.8,2.80960073]
[1729142261169,2.0026,2636.9,2636.8,1.3203015]
[1729142261370,2.0026,2636.9,2636.8,3.18890073]
[1729142261868,2.0026,2636.9,2636.8,2.80960073]
[1729142262069,2.0026,2636.9,2636.8,3.18890073]
[1729142263775,2.0026,2636.9,2636.8,2.80960073]
[1729142264077,2.0026,2636.9,2636.8,3.18890073]
[1729142264279,2.0026,2636.9,2636.8,2.80960073]
[1729142264574,2.0026,2636.9,2636.8,3.18890073]
[1729142264768,2.0026,2636.9,2636.8,0.3793]
[1729142267178,0.7726,2636.9,2636.8,0.3793]
[1729142267777,2.0026,2636.9,2636.8,0.3793]
[1729142269480,0.3793,2636.8,2636.7,1.37252368]
[1729142269873,0.3793,2636.8,2636.7,2.693264]
[1729142270070,0.3793,2636.8,2636.7,2.6932592]
[1729142271277,0.3793,2636.8,2636.7,2.69324237]
[1729142271478,0.3793,2636.8,2636.7,2.69325237]
[1729142271675,0.3793,2636.8,2636.7,6.32851504]
[1729142274983,0.3793,2636.8,2636.7,5.94920504]
[1729142275181,0.3793,2636.8,2636.7,5.94954704]
[1729142275388,0.7995,2636.8,2636.7,3.30767189]
[1729142275589,2.0295,2636.8,2636.7,3.30767189]
[1729142276189,2.0295,2636.8,2636.7,3.30800117]
[1729142276487,2.0295,2636.8,2636.7,1.32104797]
[1729142276683,2.4257,2636.8,2636.7,1.32104797]
[1729142276877,2.4257,2636.8,2636.7,2.81144274]
[1729142277486,2.4257,2636.8,2636.7,1.32104797]
[1729142278390,2.4257,2636.8,2636.7,2.31445471]
[1729142280592,2.4257,2636.8,2636.7,2.31434056]
[1729142280793,2.0295,2636.8,2636.7,2.81132859]
[1729142280997,0.37934,2636.5,2636.3,0.99376721]
[1729142281194,0.9483,2636.7,2636.0,1.49039477]
[1729142281195,0.3794,2636.1,2636.0,1.49039477]
[1729142281499,0.37943,2635.9,2635.8,0.3937]